[Event "Titled Tuesday Blitz July 26 Late 2022"]
[White "Tinmaz, Kerem"]
[Black "Flis, Pawel"]
[WhiteFideId "44559151"]
[BlackFideId "1112864"]
[WhiteElo "1443"]
[BlackElo "1735"]
[Result "1-0"]
[Round "08"]
[TimeControl "180+1"]
[Date "2022.07.27"]
[WhiteClock "0:00:02"]
[BlackClock "0:00:01"]

1. e4 {[%clk 0:03:00]}  c5 {[%clk 0:02:59]} 2. Nc3 {[%clk 0:03:00]}  Nc6 {[%clk 0:02:57]} 3. Bb5 {[%clk 0:03:00]}  Nd4 {[%clk 0:02:54]} 4. Bc4 {[%clk 0:03:00]}  e6 {[%clk 0:02:53]} 5. Nge2 {[%clk 0:03:01]}  a6 {[%clk 0:02:44]} 6. Nxd4 {[%clk 0:02:59]}  cxd4 {[%clk 0:02:44]} 7. Ne2 {[%clk 0:03:00]}  d5 {[%clk 0:02:43]} 8. exd5 {[%clk 0:02:58]}  exd5 {[%clk 0:02:42]} 9. Bb3 {[%clk 0:02:59]}  d3 {[%clk 0:02:41]} 10. cxd3 {[%clk 0:02:57]}  Nf6 {[%clk 0:02:25]} 11. O-O {[%clk 0:02:54]}  Bd6 {[%clk 0:02:17]} 12. d4 {[%clk 0:02:44]}  Bxh2+ {[%clk 0:02:12]} 13. Kxh2 {[%clk 0:02:41]}  Ng4+ {[%clk 0:02:11]} 14. Kg3 {[%clk 0:02:24]}  Qg5 {[%clk 0:02:03]} 15. f4 {[%clk 0:01:13]}  Qg6 {[%clk 0:01:53]} 16. Bc2 {[%clk 0:00:39]}  f5 {[%clk 0:01:33]} 17. Kf3 {[%clk 0:00:15]}  Nh2+ {[%clk 0:00:58]} 18. Kf2 {[%clk 0:00:15]}  Nxf1 {[%clk 0:00:52]} 19. Qxf1 {[%clk 0:00:15]}  O-O {[%clk 0:00:52]} 20. g3 {[%clk 0:00:06]}  Bd7 {[%clk 0:00:47]} 21. Ng1 {[%clk 0:00:05]}  Bb5 {[%clk 0:00:34]} 22. Bd3 {[%clk 0:00:04]}  Bxd3 {[%clk 0:00:19]} 23. Qxd3 {[%clk 0:00:05]}  Rae8 {[%clk 0:00:18]} 24. Nf3 {[%clk 0:00:06]}  Qh5 {[%clk 0:00:16]} 25. b3 {[%clk 0:00:04]}  Qh3 {[%clk 0:00:09]} 26. Ba3 {[%clk 0:00:04]}  Qg4 {[%clk 0:00:09]} 27. Bxf8 {[%clk 0:00:03]}  Rxf8 {[%clk 0:00:09]} 28. Ne5 {[%clk 0:00:03]}  Qh3 {[%clk 0:00:08]} 29. Qf3 {[%clk 0:00:04]}  Qh2+ {[%clk 0:00:07]} 30. Qg2 {[%clk 0:00:04]}  Qh5 {[%clk 0:00:08]} 31. Rh1 {[%clk 0:00:04]}  Qe8 {[%clk 0:00:07]} 32. Qxd5+ {[%clk 0:00:05]}  Kh8 {[%clk 0:00:06]} 33. Qd7 {[%clk 0:00:03]}  Qxd7 {[%clk 0:00:02]} 34. Nxd7 {[%clk 0:00:04]}  Rd8 {[%clk 0:00:02]} 35. Ne5 {[%clk 0:00:03]}  Kg8 {[%clk 0:00:02]} 36. Ke3 {[%clk 0:00:03]}  Rc8 {[%clk 0:00:02]} 37. Nd3 {[%clk 0:00:02]}  Rc2 {[%clk 0:00:01]} 38. Rc1 {[%clk 0:00:02]}  Rxa2 {[%clk 0:00:01]} 39. Rc8+ {[%clk 0:00:02]} 1-0


[Site "https://www.chess.com"]

[Event "Titled Tuesday Blitz July 26 Late 2022"]
[White "Toncheva, Nadya"]
[Black "Gallana, Marco"]
[WhiteFideId "2924056"]
[BlackFideId "824542"]
[WhiteElo "1888"]
[BlackElo "2290"]
[Result "0-1"]
[Round "08"]
[TimeControl "180+1"]
[Date "2022.07.27"]
[WhiteClock "0:00:08"]
[BlackClock "0:00:12"]

1. e4 {[%clk 0:03:00]}  c5 {[%clk 0:02:59]} 2. Nf3 {[%clk 0:03:00]}  Nc6 {[%clk 0:02:59]} 3. c3 {[%clk 0:03:00]}  d5 {[%clk 0:02:49]} 4. exd5 {[%clk 0:03:01]}  Qxd5 {[%clk 0:02:49]} 5. d4 {[%clk 0:03:02]}  g6 {[%clk 0:02:46]} 6. Be3 {[%clk 0:02:58]}  cxd4 {[%clk 0:02:45]} 7. Nxd4 {[%clk 0:02:49]}  Bg7 {[%clk 0:02:43]} 8. Nxc6 {[%clk 0:02:46]}  Qxc6 {[%clk 0:02:41]} 9. Na3 {[%clk 0:02:41]}  a6 {[%clk 0:02:40]} 10. Nc2 {[%clk 0:02:38]}  Nh6 {[%clk 0:02:33]} 11. Nd4 {[%clk 0:02:35]}  Qd6 {[%clk 0:02:33]} 12. Be2 {[%clk 0:02:28]}  O-O {[%clk 0:02:31]} 13. O-O {[%clk 0:02:27]}  Rd8 {[%clk 0:02:28]} 14. Bf3 {[%clk 0:02:04]}  Qc7 {[%clk 0:02:24]} 15. Qe2 {[%clk 0:02:02]}  Nf5 {[%clk 0:02:18]} 16. Nxf5 {[%clk 0:02:01]}  Bxf5 {[%clk 0:02:18]} 17. Rfd1 {[%clk 0:02:00]}  Rac8 {[%clk 0:02:13]} 18. Rxd8+ {[%clk 0:01:56]}  Rxd8 {[%clk 0:02:12]} 19. Rd1 {[%clk 0:01:56]}  b5 {[%clk 0:01:45]} 20. h3 {[%clk 0:01:44]}  Be6 {[%clk 0:01:37]} 21. a4 {[%clk 0:01:35]}  Bc4 {[%clk 0:01:30]} 22. Qe1 {[%clk 0:01:28]}  bxa4 {[%clk 0:01:28]} 23. Rxd8+ {[%clk 0:01:15]}  Qxd8 {[%clk 0:01:27]} 24. Bc5 {[%clk 0:01:14]}  Bf6 {[%clk 0:01:23]} 25. Qe4 {[%clk 0:01:04]}  Qd3 {[%clk 0:01:00]} 26. Qc6 {[%clk 0:00:38]}  Kg7 {[%clk 0:00:55]} 27. Qxa4 {[%clk 0:00:33]}  Be5 {[%clk 0:00:36]} 28. Qd1 {[%clk 0:00:32]}  Qf5 {[%clk 0:00:29]} 29. Qd2 {[%clk 0:00:27]}  Qb1+ {[%clk 0:00:20]} 30. Qd1 {[%clk 0:00:21]}  Qxb2 {[%clk 0:00:20]} 31. Bd4 {[%clk 0:00:21]}  Bf6 {[%clk 0:00:19]} 32. Bxf6+ {[%clk 0:00:20]}  exf6 {[%clk 0:00:19]} 33. Qd4 {[%clk 0:00:19]}  Qb1+ {[%clk 0:00:17]} 34. Kh2 {[%clk 0:00:19]}  Qd3 {[%clk 0:00:18]} 35. Bc6 {[%clk 0:00:07]}  Qxd4 {[%clk 0:00:17]} 36. cxd4 {[%clk 0:00:08]}  Kf8 {[%clk 0:00:16]} 37. Kg3 {[%clk 0:00:08]}  Ke7 {[%clk 0:00:17]} 38. Kf4 {[%clk 0:00:08]}  Kd6 {[%clk 0:00:18]} 39. Be8 {[%clk 0:00:07]}  a5 {[%clk 0:00:18]} 40. Ke4 {[%clk 0:00:06]}  Bb3 {[%clk 0:00:18]} 41. Kd3 {[%clk 0:00:05]}  h6 {[%clk 0:00:13]} 42. Kc3 {[%clk 0:00:05]}  Bd5 {[%clk 0:00:13]} 43. g3 {[%clk 0:00:04]}  g5 {[%clk 0:00:12]} 44. h4 {[%clk 0:00:04]}  f5 {[%clk 0:00:11]} 45. hxg5 {[%clk 0:00:03]}  hxg5 {[%clk 0:00:11]} 46. f4 {[%clk 0:00:02]}  f6 {[%clk 0:00:11]} 47. Kd3 {[%clk 0:00:02]}  Kc7 {[%clk 0:00:10]} 48. Kc3 {[%clk 0:00:02]}  Kb6 {[%clk 0:00:11]} 49. Bd7 {[%clk 0:00:03]}  Be4 {[%clk 0:00:10]} 50. Kc4 {[%clk 0:00:03]}  Kc7 {[%clk 0:00:10]} 51. Be8 {[%clk 0:00:02]}  Kd6 {[%clk 0:00:09]} 52. Ba4 {[%clk 0:00:02]}  Bc6 {[%clk 0:00:09]} 53. Bc2 {[%clk 0:00:02]}  Bd7 {[%clk 0:00:09]} 54. Kd3 {[%clk 0:00:01]}  Be6 {[%clk 0:00:09]} 55. Kc3 {[%clk 0:00:01]}  Bd7 {[%clk 0:00:05]} 56. Bb3 {[%clk 0:00:01]}  Bc6 {[%clk 0:00:05]} 57. Bc4 {[%clk 0:00:01]}  Bd5 {[%clk 0:00:05]} 58. Bb5 {[%clk 0:00:01]}  Bc6 {[%clk 0:00:04]} 59. Bd3 {[%clk 0:00:02]}  Bd7 {[%clk 0:00:03]} 60. Bc4 {[%clk 0:00:02]}  Be6 {[%clk 0:00:03]} 61. Bd3 {[%clk 0:00:02]}  Bd5 {[%clk 0:00:03]} 62. Ba6 {[%clk 0:00:03]}  Be4 {[%clk 0:00:04]} 63. Be2 {[%clk 0:00:03]}  Bd5 {[%clk 0:00:04]} 64. Bb5 {[%clk 0:00:04]}  Bc6 {[%clk 0:00:04]} 65. Bd3 {[%clk 0:00:04]}  a4 {[%clk 0:00:05]} 66. Bc4 {[%clk 0:00:04]}  a3 {[%clk 0:00:05]} 67. Kb3 {[%clk 0:00:05]}  Bd5 {[%clk 0:00:06]} 68. Bxd5 {[%clk 0:00:03]}  Kxd5 {[%clk 0:00:07]} 69. Kxa3 {[%clk 0:00:04]}  Kxd4 {[%clk 0:00:08]} 70. Kb4 {[%clk 0:00:04]}  Ke4 {[%clk 0:00:08]} 71. Kc4 {[%clk 0:00:04]}  gxf4 {[%clk 0:00:09]} 72. gxf4 {[%clk 0:00:05]}  Kxf4 {[%clk 0:00:09]} 73. Kd3 {[%clk 0:00:06]}  Kg3 {[%clk 0:00:09]} 74. Ke2 {[%clk 0:00:07]}  Kg2 {[%clk 0:00:10]} 75. Ke3 {[%clk 0:00:07]}  Kg3 {[%clk 0:00:10]} 76. Ke2 {[%clk 0:00:07]}  f4 {[%clk 0:00:11]} 77. Kf1 {[%clk 0:00:08]}  Kf3 {[%clk 0:00:12]} 78. Ke1 {[%clk 0:00:08]}  Kg2 {[%clk 0:00:12]} 0-1


[Site "https://www.chess.com"]

[Event "Titled Tuesday Blitz July 26 Late 2022"]
[White "Vazquez Espino, Uriel"]
[Black "Romanchuk, Viktor"]
[WhiteFideId "5119138"]
[BlackFideId "14109271"]
[WhiteElo "2368"]
[BlackElo "2242"]
[Result "0-1"]
[Round "08"]
[TimeControl "180+1"]
[Date "2022.07.27"]
[WhiteClock "0:00:06"]
[BlackClock "0:00:24"]

1. e4 {[%clk 0:03:00]}  e6 {[%clk 0:02:57]} 2. d4 {[%clk 0:02:59]}  d5 {[%clk 0:02:57]} 3. Nc3 {[%clk 0:03:00]}  dxe4 {[%clk 0:02:56]} 4. Nxe4 {[%clk 0:02:59]}  Nd7 {[%clk 0:02:57]} 5. Nf3 {[%clk 0:02:58]}  Ngf6 {[%clk 0:02:58]} 6. Nxf6+ {[%clk 0:02:59]}  Nxf6 {[%clk 0:02:58]} 7. Bd3 {[%clk 0:02:59]}  c5 {[%clk 0:02:59]} 8. Bg5 {[%clk 0:02:49]}  cxd4 {[%clk 0:02:52]} 9. Nxd4 {[%clk 0:02:49]}  Qa5+ {[%clk 0:02:50]} 10. Bd2 {[%clk 0:02:45]}  Qe5+ {[%clk 0:02:49]} 11. Ne2 {[%clk 0:02:43]}  Qxb2 {[%clk 0:02:48]} 12. O-O {[%clk 0:02:42]}  Be7 {[%clk 0:02:48]} 13. Bc3 {[%clk 0:02:13]}  Qb6 {[%clk 0:02:33]} 14. Rb1 {[%clk 0:02:10]}  Qc7 {[%clk 0:02:33]} 15. Bb5+ {[%clk 0:01:55]}  Kf8 {[%clk 0:02:21]} 16. Qd4 {[%clk 0:01:35]}  h5 {[%clk 0:02:13]} 17. Rfd1 {[%clk 0:01:19]}  h4 {[%clk 0:02:10]} 18. h3 {[%clk 0:01:18]}  Rh5 {[%clk 0:02:09]} 19. Qe3 {[%clk 0:01:00]}  Nd5 {[%clk 0:01:48]} 20. Qf3 {[%clk 0:00:48]}  Rf5 {[%clk 0:01:47]} 21. Qd3 {[%clk 0:00:43]}  Nxc3 {[%clk 0:01:40]} 22. Nxc3 {[%clk 0:00:43]}  a6 {[%clk 0:01:30]} 23. Bc4 {[%clk 0:00:32]}  b5 {[%clk 0:01:29]} 24. Bb3 {[%clk 0:00:32]}  Bb7 {[%clk 0:01:29]} 25. Ne2 {[%clk 0:00:19]}  Rd8 {[%clk 0:01:18]} 26. Qe3 {[%clk 0:00:19]}  Bc5 {[%clk 0:01:16]} 27. Nd4 {[%clk 0:00:19]}  e5 {[%clk 0:00:57]} 28. Qd3 {[%clk 0:00:13]}  g6 {[%clk 0:00:52]} 29. Ne6+ {[%clk 0:00:10]}  fxe6 {[%clk 0:00:49]} 30. Qxd8+ {[%clk 0:00:11]}  Qxd8 {[%clk 0:00:48]} 31. Rxd8+ {[%clk 0:00:12]}  Ke7 {[%clk 0:00:49]} 32. Rb8 {[%clk 0:00:12]}  Bxf2+ {[%clk 0:00:44]} 33. Kh2 {[%clk 0:00:11]}  Bd5 {[%clk 0:00:43]} 34. Bxd5 {[%clk 0:00:11]}  exd5 {[%clk 0:00:44]} 35. Rb7+ {[%clk 0:00:11]}  Kf6 {[%clk 0:00:40]} 36. a4 {[%clk 0:00:11]}  bxa4 {[%clk 0:00:37]} 37. Rd7 {[%clk 0:00:11]}  d4 {[%clk 0:00:35]} 38. Rd6+ {[%clk 0:00:11]}  Kg5 {[%clk 0:00:35]} 39. Rxa6 {[%clk 0:00:12]}  Bg3+ {[%clk 0:00:34]} 40. Kh1 {[%clk 0:00:12]}  Rf2 {[%clk 0:00:34]} 41. Rxa4 {[%clk 0:00:13]}  Rxc2 {[%clk 0:00:34]} 42. Rf1 {[%clk 0:00:12]}  Bf4 {[%clk 0:00:33]} 43. Ra3 {[%clk 0:00:12]}  Kf5 {[%clk 0:00:33]} 44. Raf3 {[%clk 0:00:12]}  g5 {[%clk 0:00:32]} 45. Ra3 {[%clk 0:00:12]}  Rc5 {[%clk 0:00:31]} 46. Ra8 {[%clk 0:00:11]}  Ke4 {[%clk 0:00:29]} 47. Rf8 {[%clk 0:00:12]}  Ke3 {[%clk 0:00:27]} 48. Rf3+ {[%clk 0:00:10]}  Ke2 {[%clk 0:00:27]} 49. R8xf4 {[%clk 0:00:06]}  exf4 {[%clk 0:00:24]} 50. Kh2 {[%clk 0:00:06]}  d3 {[%clk 0:00:24]} 0-1


[Site "https://www.chess.com"]

[Event "Titled Tuesday Blitz July 26 Late 2022"]
[White "Vlassov, Nikolai"]
[Black "Jin, Ashton"]
[WhiteFideId "4103360"]
[BlackFideId "30931908"]
[WhiteElo "2324"]
[BlackElo "2514"]
[Result "1-0"]
[Round "08"]
[TimeControl "180+1"]
[Date "2022.07.26"]
[WhiteClock "0:02:27"]
[BlackClock "0:01:32"]

1. e4 {[%clk 0:03:00]}  c5 {[%clk 0:03:00]} 2. c3 {[%clk 0:03:00]}  Nf6 {[%clk 0:02:59]} 3. e5 {[%clk 0:03:01]}  Nd5 {[%clk 0:02:59]} 4. d4 {[%clk 0:03:02]}  cxd4 {[%clk 0:03:00]} 5. cxd4 {[%clk 0:03:03]}  d6 {[%clk 0:02:54]} 6. Bc4 {[%clk 0:03:02]}  Nb6 {[%clk 0:02:49]} 7. Bb3 {[%clk 0:03:02]}  Nc6 {[%clk 0:02:45]} 8. e6 {[%clk 0:03:02]}  Bxe6 {[%clk 0:02:43]} 9. d5 {[%clk 0:03:02]}  Nxd5 {[%clk 0:02:34]} 10. Bxd5 {[%clk 0:03:02]}  Bxd5 {[%clk 0:02:29]} 11. Qxd5 {[%clk 0:03:01]}  e6 {[%clk 0:02:29]} 12. Qb5 {[%clk 0:03:00]}  Rc8 {[%clk 0:02:19]} 13. Nc3 {[%clk 0:02:58]}  Be7 {[%clk 0:02:18]} 14. Nf3 {[%clk 0:02:56]}  O-O {[%clk 0:02:18]} 15. Qxb7 {[%clk 0:02:53]}  Qa5 {[%clk 0:02:09]} 16. O-O {[%clk 0:02:47]}  d5 {[%clk 0:01:55]} 17. Qb5 {[%clk 0:02:44]}  Qc7 {[%clk 0:01:54]} 18. Be3 {[%clk 0:02:35]}  Rb8 {[%clk 0:01:48]} 19. Qe2 {[%clk 0:02:34]}  Bf6 {[%clk 0:01:46]} 20. Bg5 {[%clk 0:02:28]}  Bxg5 {[%clk 0:01:35]} 21. Nxg5 {[%clk 0:02:28]}  h6 {[%clk 0:01:32]} 22. Nf3 {[%clk 0:02:27]} 1-0


[Site "https://www.chess.com"]

[Event "Titled Tuesday Blitz July 26 Late 2022"]
[White "Wagner, Dennis"]
[Black "Grigoriants, Sergey"]
[WhiteFideId "24650684"]
[BlackFideId "4130804"]
[WhiteElo "2355"]
[BlackElo "2502"]
[Result "0-1"]
[Round "08"]
[TimeControl "180+1"]
[Date "2022.07.26"]
[WhiteClock "0:00:01"]
[BlackClock "0:00:06"]

1. e4 {[%clk 0:03:00]}  e5 {[%clk 0:02:56]} 2. Nf3 {[%clk 0:03:00]}  Nc6 {[%clk 0:02:57]} 3. Bb5 {[%clk 0:03:00]}  a6 {[%clk 0:02:57]} 4. Ba4 {[%clk 0:03:00]}  Nf6 {[%clk 0:02:57]} 5. O-O {[%clk 0:03:01]}  b5 {[%clk 0:02:57]} 6. Bb3 {[%clk 0:03:01]}  Bc5 {[%clk 0:02:58]} 7. a4 {[%clk 0:02:59]}  Rb8 {[%clk 0:02:56]} 8. c3 {[%clk 0:02:59]}  d6 {[%clk 0:02:56]} 9. d4 {[%clk 0:02:59]}  Bb6 {[%clk 0:02:56]} 10. a5 {[%clk 0:02:58]}  Ba7 {[%clk 0:02:56]} 11. h3 {[%clk 0:02:58]}  O-O {[%clk 0:02:52]} 12. Be3 {[%clk 0:02:56]}  Re8 {[%clk 0:02:49]} 13. Nbd2 {[%clk 0:02:48]}  Ra8 {[%clk 0:02:40]} 14. Re1 {[%clk 0:02:45]}  Bb7 {[%clk 0:02:38]} 15. Nf1 {[%clk 0:02:40]}  h6 {[%clk 0:02:12]} 16. Ng3 {[%clk 0:02:26]}  exd4 {[%clk 0:02:09]} 17. cxd4 {[%clk 0:02:01]}  Nxe4 {[%clk 0:01:34]} 18. Nxe4 {[%clk 0:01:51]}  Rxe4 {[%clk 0:01:34]} 19. Bd5 {[%clk 0:01:39]}  Re7 {[%clk 0:01:24]} 20. Qd2 {[%clk 0:01:37]}  Nxa5 {[%clk 0:01:19]} 21. Bxb7 {[%clk 0:01:30]}  Nxb7 {[%clk 0:01:20]} 22. Bxh6 {[%clk 0:01:05]}  Rxe1+ {[%clk 0:01:07]} 23. Rxe1 {[%clk 0:01:06]}  Qf6 {[%clk 0:01:08]} 24. Bg5 {[%clk 0:00:57]}  Qg6 {[%clk 0:01:08]} 25. Nh4 {[%clk 0:00:48]}  Qh7 {[%clk 0:00:59]} 26. Re7 {[%clk 0:00:46]}  Bb6 {[%clk 0:00:57]} 27. g4 {[%clk 0:00:40]}  Na5 {[%clk 0:00:51]} 28. Kg2 {[%clk 0:00:18]}  Nc6 {[%clk 0:00:47]} 29. Re1 {[%clk 0:00:08]}  Nxd4 {[%clk 0:00:44]} 30. Qe3 {[%clk 0:00:07]}  Ne6 {[%clk 0:00:40]} 31. Qf3 {[%clk 0:00:06]}  Rf8 {[%clk 0:00:33]} 32. Be7 {[%clk 0:00:05]}  Re8 {[%clk 0:00:32]} 33. Nf5 {[%clk 0:00:05]}  Kh8 {[%clk 0:00:22]} 34. Qc6 {[%clk 0:00:02]}  Rg8 {[%clk 0:00:22]} 35. Qd7 {[%clk 0:00:02]}  Qg6 {[%clk 0:00:11]} 36. Kg3 {[%clk 0:00:02]}  Bd4 {[%clk 0:00:08]} 37. Nh4 {[%clk 0:00:01]}  Qd3+ {[%clk 0:00:06]} 0-1


[Site "https://www.chess.com"]

[Event "Titled Tuesday Blitz July 26 Late 2022"]
[White "Zhu, Jiner"]
[Black "Vovk, Orest"]
[WhiteFideId "8608059"]
[BlackFideId "14113490"]
[WhiteElo "2281"]
[BlackElo "2203"]
[Result "1-0"]
[Round "08"]
[TimeControl "180+1"]
[Date "2022.07.26"]
[WhiteClock "0:00:27"]
[BlackClock "0:00:01"]

1. e4 {[%clk 0:03:00]}  h6 {[%clk 0:02:56]} 2. d4 {[%clk 0:02:58]}  g5 {[%clk 0:02:48]} 3. Nc3 {[%clk 0:02:56]}  Bg7 {[%clk 0:02:48]} 4. Be3 {[%clk 0:02:54]}  c5 {[%clk 0:02:47]} 5. dxc5 {[%clk 0:02:53]}  Bxc3+ {[%clk 0:02:46]} 6. bxc3 {[%clk 0:02:53]}  Nc6 {[%clk 0:02:47]} 7. Nf3 {[%clk 0:02:47]}  Qa5 {[%clk 0:02:46]} 8. Qd2 {[%clk 0:02:35]}  Nf6 {[%clk 0:02:42]} 9. Bd3 {[%clk 0:02:35]}  g4 {[%clk 0:02:33]} 10. Nd4 {[%clk 0:02:26]}  h5 {[%clk 0:01:49]} 11. Nf5 {[%clk 0:02:18]}  d5 {[%clk 0:01:04]} 12. cxd6 {[%clk 0:02:15]}  Bxf5 {[%clk 0:01:03]} 13. exf5 {[%clk 0:02:15]}  O-O-O {[%clk 0:00:58]} 14. dxe7 {[%clk 0:02:00]}  Nxe7 {[%clk 0:00:51]} 15. O-O {[%clk 0:01:30]}  Nxf5 {[%clk 0:00:39]} 16. Bf4 {[%clk 0:01:30]}  Nd6 {[%clk 0:00:19]} 17. Rab1 {[%clk 0:01:02]}  Nc4 {[%clk 0:00:15]} 18. Qe2 {[%clk 0:00:55]}  Rhe8 {[%clk 0:00:13]} 19. Bf5+ {[%clk 0:00:54]}  Qxf5 {[%clk 0:00:06]} 20. Qxc4+ {[%clk 0:00:54]}  Kd7 {[%clk 0:00:07]} 21. Qc7+ {[%clk 0:00:52]}  Ke6 {[%clk 0:00:07]} 22. Rxb7 {[%clk 0:00:28]}  Nd5 {[%clk 0:00:07]} 23. Qc6+ {[%clk 0:00:27]}  Rd6 {[%clk 0:00:01]} 24. Qxd6# {[%clk 0:00:27]} 1-0


[Site "https://www.chess.com"]

[Event "Titled Tuesday Blitz July 26 Late 2022"]
[White "Ansh M Shah"]
[Black "Silva, Miguel Antonio Neto"]
[WhiteFideId "25033379"]
[BlackFideId "1911929"]
[WhiteElo "1819"]
[BlackElo "2223"]
[Result "1-0"]
[Round "09"]
[TimeControl "180+1"]
[Date "2022.07.27"]
[WhiteClock "0:00:34"]
[BlackClock "0:00:44"]

1. d4 {[%clk 0:03:00]}  Nf6 {[%clk 0:02:57]} 2. c4 {[%clk 0:03:01]}  e6 {[%clk 0:02:55]} 3. Nf3 {[%clk 0:03:01]}  d5 {[%clk 0:02:53]} 4. g3 {[%clk 0:03:01]}  Be7 {[%clk 0:02:50]} 5. Bg2 {[%clk 0:03:02]}  O-O {[%clk 0:02:51]} 6. O-O {[%clk 0:03:02]}  dxc4 {[%clk 0:02:51]} 7. Qc2 {[%clk 0:03:02]}  a6 {[%clk 0:02:50]} 8. a4 {[%clk 0:03:00]}  Bd7 {[%clk 0:02:50]} 9. Qxc4 {[%clk 0:02:57]}  Bc6 {[%clk 0:02:50]} 10. Bg5 {[%clk 0:02:58]}  Nbd7 {[%clk 0:02:39]} 11. Rd1 {[%clk 0:02:32]}  h6 {[%clk 0:02:34]} 12. Bxf6 {[%clk 0:02:27]}  Nxf6 {[%clk 0:02:35]} 13. Nc3 {[%clk 0:02:27]}  a5 {[%clk 0:02:32]} 14. Ne5 {[%clk 0:02:24]}  Bxg2 {[%clk 0:02:31]} 15. Kxg2 {[%clk 0:02:25]}  c6 {[%clk 0:02:30]} 16. Rac1 {[%clk 0:02:24]}  Qb6 {[%clk 0:02:29]} 17. Nd3 {[%clk 0:02:13]}  Rfd8 {[%clk 0:02:25]} 18. e3 {[%clk 0:02:13]}  Rac8 {[%clk 0:02:21]} 19. b3 {[%clk 0:02:07]}  Nd5 {[%clk 0:02:18]} 20. Nc5 {[%clk 0:01:45]}  Bxc5 {[%clk 0:02:08]} 21. dxc5 {[%clk 0:01:46]}  Qb4 {[%clk 0:02:05]} 22. Nxd5 {[%clk 0:01:38]}  Rxd5 {[%clk 0:01:25]} 23. Qxb4 {[%clk 0:01:20]}  axb4 {[%clk 0:01:24]} 24. e4 {[%clk 0:01:19]}  Rdd8 {[%clk 0:01:11]} 25. Rxd8+ {[%clk 0:01:15]}  Rxd8 {[%clk 0:01:10]} 26. Rc4 {[%clk 0:01:16]}  Kf8 {[%clk 0:01:05]} 27. Rxb4 {[%clk 0:01:16]}  Rd7 {[%clk 0:01:05]} 28. Kf3 {[%clk 0:01:12]}  Ke7 {[%clk 0:01:05]} 29. Ke3 {[%clk 0:01:12]}  Rc7 {[%clk 0:00:58]} 30. Rd4 {[%clk 0:01:09]}  Rc8 {[%clk 0:00:57]} 31. e5 {[%clk 0:01:08]}  Ra8 {[%clk 0:00:56]} 32. f4 {[%clk 0:01:06]}  Ra5 {[%clk 0:00:55]} 33. Rc4 {[%clk 0:01:05]}  Kd7 {[%clk 0:00:55]} 34. Kd4 {[%clk 0:01:04]}  Kc7 {[%clk 0:00:56]} 35. Kc3 {[%clk 0:01:05]}  Ra8 {[%clk 0:00:56]} 36. Rd4 {[%clk 0:01:05]}  g6 {[%clk 0:00:52]} 37. h4 {[%clk 0:01:02]}  Rg8 {[%clk 0:00:49]} 38. b4 {[%clk 0:00:54]}  Ra8 {[%clk 0:00:49]} 39. Kb3 {[%clk 0:00:54]}  Rb8 {[%clk 0:00:48]} 40. b5 {[%clk 0:00:54]}  cxb5 {[%clk 0:00:47]} 41. axb5 {[%clk 0:00:55]}  Ra8 {[%clk 0:00:47]} 42. b6+ {[%clk 0:00:34]}  Kc6 {[%clk 0:00:44]} 43. Kb4 {[%clk 0:00:34]} 1-0


[Site "https://www.chess.com"]

[Event "Titled Tuesday Blitz July 26 Late 2022"]
[White "Ardila, Oscar Humberto"]
[Black "Burke, Paul"]
[WhiteFideId "4404742"]
[BlackFideId "2605767"]
[WhiteElo "1956"]
[BlackElo "1927"]
[Result "1-0"]
[Round "09"]
[TimeControl "180+1"]
[Date "2022.07.27"]
[WhiteClock "0:00:19"]
[BlackClock "0:00:01"]

1. d4 {[%clk 0:02:48]}  c5 {[%clk 0:02:58]} 2. d5 {[%clk 0:02:47]}  Nf6 {[%clk 0:02:58]} 3. c4 {[%clk 0:02:47]}  Ne4 {[%clk 0:02:57]} 4. Qc2 {[%clk 0:02:41]}  Qa5+ {[%clk 0:02:57]} 5. Nd2 {[%clk 0:02:40]}  Nf6 {[%clk 0:02:56]} 6. e4 {[%clk 0:02:38]}  d6 {[%clk 0:02:55]} 7. Bd3 {[%clk 0:02:37]}  g6 {[%clk 0:02:55]} 8. h3 {[%clk 0:02:37]}  Bg7 {[%clk 0:02:54]} 9. Nf3 {[%clk 0:02:37]}  Na6 {[%clk 0:02:54]} 10. O-O {[%clk 0:02:28]}  O-O {[%clk 0:02:38]} 11. Nb3 {[%clk 0:02:25]}  Qd8 {[%clk 0:02:36]} 12. a3 {[%clk 0:02:22]}  h6 {[%clk 0:02:34]} 13. Bf4 {[%clk 0:02:21]}  e5 {[%clk 0:02:29]} 14. dxe6 {[%clk 0:02:19]}  Bxe6 {[%clk 0:02:28]} 15. Rad1 {[%clk 0:02:18]}  Qe7 {[%clk 0:02:21]} 16. Rfe1 {[%clk 0:02:18]}  g5 {[%clk 0:02:14]} 17. Bh2 {[%clk 0:02:16]}  g4 {[%clk 0:02:14]} 18. hxg4 {[%clk 0:02:10]}  Nxg4 {[%clk 0:02:04]} 19. Bg3 {[%clk 0:02:06]}  Ne5 {[%clk 0:01:56]} 20. Be2 {[%clk 0:02:05]}  Rad8 {[%clk 0:01:26]} 21. Nbd2 {[%clk 0:02:02]}  Nc7 {[%clk 0:01:18]} 22. Nf1 {[%clk 0:01:56]}  a6 {[%clk 0:01:11]} 23. Ne3 {[%clk 0:01:55]}  b5 {[%clk 0:01:05]} 24. cxb5 {[%clk 0:01:53]}  axb5 {[%clk 0:01:04]} 25. Nd5 {[%clk 0:01:53]}  Nxd5 {[%clk 0:00:56]} 26. exd5 {[%clk 0:01:53]}  Bc8 {[%clk 0:00:39]} 27. Bxb5 {[%clk 0:01:47]}  Nxf3+ {[%clk 0:00:38]} 28. gxf3 {[%clk 0:01:47]}  Qf6 {[%clk 0:00:33]} 29. Qe4 {[%clk 0:01:34]}  Bf5 {[%clk 0:00:31]} 30. Qf4 {[%clk 0:01:33]}  Qg6 {[%clk 0:00:29]} 31. b4 {[%clk 0:01:28]}  Be5 {[%clk 0:00:29]} 32. Qh4 {[%clk 0:01:27]}  Bf6 {[%clk 0:00:27]} 33. Qh2 {[%clk 0:01:27]}  Bd4 {[%clk 0:00:24]} 34. bxc5 {[%clk 0:01:24]}  dxc5 {[%clk 0:00:22]} 35. Kg2 {[%clk 0:01:24]}  Rxd5 {[%clk 0:00:20]} 36. Bc4 {[%clk 0:01:23]}  Rd7 {[%clk 0:00:20]} 37. Rh1 {[%clk 0:01:14]}  Bg7 {[%clk 0:00:16]} 38. Rxd7 {[%clk 0:01:05]}  Bxd7 {[%clk 0:00:16]} 39. Rd1 {[%clk 0:01:04]}  Bc6 {[%clk 0:00:15]} 40. Bd5 {[%clk 0:00:35]}  Bb5 {[%clk 0:00:15]} 41. Qh4 {[%clk 0:00:33]}  Be2 {[%clk 0:00:13]} 42. Rd2 {[%clk 0:00:30]}  Bb5 {[%clk 0:00:12]} 43. Be4 {[%clk 0:00:28]}  f5 {[%clk 0:00:11]} 44. Rd6 {[%clk 0:00:26]}  Qg5 {[%clk 0:00:09]} 45. Bd5+ {[%clk 0:00:25]}  Kh7 {[%clk 0:00:08]} 46. Qf4 {[%clk 0:00:22]}  Bf6 {[%clk 0:00:03]} 47. Rb6 {[%clk 0:00:19]}  Qxf4 {[%clk 0:00:02]} 48. Bxf4 {[%clk 0:00:19]}  Bd7 {[%clk 0:00:01]} 49. Rb7 {[%clk 0:00:19]} 1-0


[Site "https://www.chess.com"]